Cogmind - Beta 17 @@@ ROGUE MODE // 2026.07.27 @ 13:22:14 Player: rz Result: Destroyed by H-61 Shepherd with Heavy Assault Cannon Performance ------------- Evolutions (2) 1000 Regions Visited (3) 600 Robots Destroyed (38) 190 Value Destroyed (1197) 1197 Prototype IDs (1) 20 Alien Tech Used (0) 0 Bonus (0) 0 TOTAL SCORE: 3007 Bonus ------- None Cogmind --------- Core Integrity 0/550 Matter 255/300 Energy 30/160 System Corruption 2% Temperature Cool (0) Movement Flying (28) Location -8/Materials Parts ------- > --- POWER (1) -------- Light Nuclear Core > --- PROPULSION (4) --- Flight Unit Flight Unit VTOL Module Improved VTOL Module > --- UTILITY (4) ------ Improved Terrain Scanner > --- WEAPON (2) ------- Axe > --- INVENTORY (5) ---- Improved Ion Engine Nuclear Core Flight Unit High-capacity Matter Pod (200) Hacking Suite Peak State ------------ > --- POWER ------------ Improved Ion Engine > --- PROPULSION ------- Armored Treads Wheel Wheel Wheel > --- UTILITY ---------- High-capacity Storage Unit Improved Terrain Scanner Improved Terrain Scan Processor Medium Armor Plating > --- WEAPON ----------- Axe Axe > --- INVENTORY -------- Light Ion Engine Light Treads Light Treads Light Treads Light Treads VTOL Module Improved VTOL Module High-capacity Matter Pod Sensor Array Improved Sensor Array Signal Interpreter Improved Signal Interpreter Hacking Suite Hacking Suite Light Assault Rifle Rocket Launcher Axe Axe [Rating: 26] Favorites ----------- Power Ion Engine Engine Ion Engine Power Core Light Nuclear Core Propulsion Light Treads Treads Light Treads Wheel Wheel Flight Unit Flight Unit Utility High-capacity Storage Unit Device Improved Terrain Scanner Storage High-capacity Storage Unit Processor Improved Terrain Scan Processor Protection Light Armor Plating Weapon Light Assault Rifle Ballistic Gun Light Assault Rifle Launcher Rocket Launcher Impact Weapon Hammer Slashing Weapon Axe Build | -11 -10 -9 -8 ------- Run | Yrd Mat Mat Mat Slots Evolved 4 | . . 2 2 Power . | . . . . Propulsion 2 | . . 1 1 Utility 2 | . . 1 1 Weapon . | . . . . Parts Attached 45 | 8 2 9 26 Power 6 | 1 . 1 4 Engine 3 | 1 . 1 1 Core 3 | . . . 3 Reactor . | . . . . Propulsion 20 | 2 . 3 15 Treads 10 | 2 . . 8 Leg . | . . . . Wheel 6 | . . 3 3 Hover . | . . . . Flight 4 | . . . 4 Utility 12 | 3 1 3 5 Device 4 | 2 . 1 1 Storage 3 | 1 1 1 . Processor 2 | . . 1 1 Hackware . | . . . . Protection 3 | . . . 3 Artifact . | . . . . Weapon 7 | 2 1 2 2 Energy Gun . | . . . . Energy Cannon . | . . . . Ballistic Gun 2 | 2 . . . Ballistic Cannon . | . . . . Launcher 1 | . . . 1 Special Weapon . | . . . . Impact Weapon 1 | . 1 . . Slashing Weapon 3 | . . 2 1 Piercing Weapon . | . . . . Special Melee Weapon . | . . . . Unidentified Prototypes 1 | . . . 1 Parts Lost 22 | . . 1 21 Power 3 | . . 1 2 Propulsion 12 | . . . 12 Utility 5 | . . . 5 Weapon 2 | . . . 2 Highest Loss Streak 7 | . . 1 7 To Critical Strikes . | . . . . Average Backups 12 | 2 7 17 18 Power 1 | . 1 1 2 Propulsion 4 | 1 2 6 6 Utility 4 | . 3 6 6 Weapon 2 | . 1 3 3 Tool/Special . | . . . . Unused Backups 14 | . . 3 11 Power 1 | . . . 1 Propulsion 2 | . . 1 1 Utility 9 | . . 1 8 Weapon 2 | . . 1 1 Tool/Special . | . . . . Average Slot Usage (%) 94 | . 100 93 87 Engine 10 | . 14 10 5 Treads 18 | . 28 9 14 Wheel 10 | . . 18 16 Device 11 | . 14 14 6 Storage 11 | . 14 11 8 Processor 4 | . . 6 9 Protection 1 | . . . 5 Ballistic Gun 10 | . 24 4 . Impact Weapon 2 | . 3 4 . Slashing Weapon 8 | . . 13 14 Peak Build Rating 26 | 9 10 19 26 Average Rating 14 | 7 9 15 21 On Entrance 9 | . 9 10 19 Avg Prop Armor Cover (%) 10 | . . . 10 Naked Turns . | . . . . Heaviest Build 64 | 13 49 54 64 Greatest Support 80 | 40 40 40 80 Greatest Overweight (x) 4 | 1 1 1 4 Average Overweight (x) . | . . 1 . Largest Inventory Capacity 20 | 8 20 20 20 Average Capacity 17 | 7 18 20 19 Most Carried 20 | 4 13 20 20 Average Carried 12 | 3 8 17 18 Final Capacity 20 | 8 20 20 5 Final Carried 20 | 4 13 20 5 Class Distribution -------------------- 65% | Mutant 18% | Gladiator 16% | Scavenger-Mutant Dominant Class ---------------- Mutant | -10/Materials Gladiator | -9/Materials Scavenger-Mutant | -8/Materials Resources | -11 -10 -9 -8 ----------- Run | Yrd Mat Mat Mat Matter Collected 955 | 344 4 310 297 Remotely . | . . . . Salvage Created 1535 | 183 18 361 973 Parts 85 | 15 3 24 43 Haulers Intercepted 1 | . . 1 . Recyclers Shooed 1 | 1 . . . Parts Field Recycled . | . . . . Retrieved Matter . | . . . . Parts Self-Destructed . | . . . . Prevented . | . . . . Parts Restored . | . . . . Kills | -11 -10 -9 -8 ------- Run | Yrd Mat Mat Mat Combat Hostiles Destroyed 26 | . . 6 20 Melee 25 | . . 6 19 AOE 1 | . . . 1 Classes Destroyed 10 | 2 1 3 4 Tunneler 6 | 6 . . . Hauler 1 | . . 1 . Recycler 2 | 1 . . 1 Operator 2 | . 1 1 . Watcher 1 | . . . 1 Swarmer 3 | . . . 3 Grunt 14 | . . 3 11 Brawler 2 | . . . 2 Duelist 1 | . . . 1 Sentry 6 | . . 3 3 Best Kill Streak 4 | 4 1 4 4 Combat Bots Only 4 | . . 4 4 Max Kills in Single Turn 1 | 1 1 1 1 Gunslinging . | . . . . Exploded 1 | . . . 1 Melee 1 | . . 1 1 Uniques/NPCs Destroyed . | . . . . Combat | -11 -10 -9 -8 -------- Run | Yrd Mat Mat Mat Hostile Shots Fired 201 | . 2 27 172 Missed 44 | . 2 6 36 Hits 157 | . . 21 136 Melee 12 | . . . 12 Projectile 145 | . . 21 124 Critical Strikes 15 | . . 1 14 Damage Taken 2882 | . . 287 2595 Core 625 | . . 71 554 Absorbed by Shields . | . . . . Core Remaining (%) 94 | 100 100 82 . Volleys Fired 40 | 32 2 . 6 Largest 2 | 2 2 . 1 Hottest 40 | 40 40 . 33 Shots Fired 75 | 64 4 . 7 Gun 68 | 64 4 . . Cannon . | . . . . Launcher 7 | . . . 7 Special . | . . . . Kinetic 68 | 64 4 . . Thermal . | . . . . Explosive 7 | . . . 7 Electromagnetic . | . . . . Robot Hit Streak 10 | 9 7 . 10 Robot Miss Streak 3 | 3 . . 1 Penetration Max . | . . . . Secondary Targets . | . . . . Shots Hit Robots 118 | 44 4 16 54 Core Hits 48 | 14 2 7 25 Critical Kills . | . . . . Critical Parts Destroyed 1 | 1 . . . Critical Strikes 8 | 1 . 2 5 Destroy 1 | 1 . . . Sever 7 | . . 2 5 Melee Attacks 101 | . 3 20 78 Impact 3 | . 3 . . Slashing 98 | . . 20 78 Piercing . | . . . . Sneak Attacks 3 | . . 2 1 Combat Hostiles . | . . . . Follow-up Attacks 7 | . . 2 5 Damage Inflicted 3087 | 349 33 699 2006 Guns 382 | 349 33 . . Cannons . | . . . . Explosions 344 | . . . 344 Melee 2361 | . . 699 1662 Ramming . | . . . . Kinetic 382 | 349 33 . . Thermal . | . . . . Explosive 344 | . . . 344 Electromagnetic . | . . . . Impact . | . . . . Slashing 2361 | . . 699 1662 Piercing . | . . . . Highest Corruption 2 | . . . 2 Average Corruption 2 | . . . 2 Corruption Purged . | . . . . Corruption Blocked . | . . . . Effects 2 | . . . 2 Energy Discharges 1 | . . . 1 Misfires 1 | . . . 1 Overload Shots . | . . . . Overflow Damage 135 | . . 28 107 Projectiles . | . . . . Explosions 18 | . . . 18 Melee 117 | . . 28 89 Knockbacks . | . . . . Impact . | . . . . Kinetic . | . . . . Secondary . | . . . . Self-Inflicted Damage 216 | . . . 216 Shots 5 | . . . 5 Rammed . | . . . . Targets Rammed . | . . . . Kicked . | . . . . Crushed . | . . . . Highest Temperature 17 | . . 4 17 Average Temperature 8 | . . 4 8 Received Heat Transfer 1092 | . . 111 981 Siege Activations . | . . . . Martial Activations . | . . . . Shielding Activations . | . . . . Robots Disrupted . | . . . . Combat Hostiles . | . . . . Robots Corrupted . | . . . . Combat Hostiles . | . . . . Parts Fried . | . . . . Impact Corruptions . | . . . . Robots Melted . | . . . . Combat Hostiles . | . . . . Parts Melted . | . . . . Heat Transferred . | . . . . Parts Sabotaged . | . . . . Parts Stolen . | . . . . Parts Stripped . | . . . . Power Chain Reactions . | . . . . Alert | -11 -10 -9 -8 ------- Run | Yrd Mat Mat Mat Maximum Alert Level 1 | . . . 1 Low Security (%) 96 | 100 100 100 86 Level 1 3 | . . . 13 Level 2 . | . . . . Level 3 . | . . . . Level 4 . | . . . . Level 5 . | . . . . High Security . | . . . . Max Security . | . . . . Peak Influence 270 | 10 15 92 270 Initial 9 | . . . 9 Average 34 | . . 23 96 Influence Increases 924 | 35 44 173 672 Destroy 0b10 Robot/C 520 | . . 120 400 Destroy 0b10 Robot/NC 60 | 35 5 10 10 Destroy Leader 134 | . . 42 92 Successful Hack 23 | . 23 . . Disable Machine 45 | . 15 . 30 Destroy Structure 67 | . 1 1 65 Partial Spotted 15 | . . . 15 Lose Combat Pursuer 60 | . . . 60 Influence Decreases 746 | 35 44 151 516 Entered New Map 13 | . . . 13 Time Decay 513 | 35 44 141 293 Lost Part 220 | . . 10 210 Squads Dispatched 7 | . . 1 6 Investigation . | . . . . Extermination . | . . . . Reinforcement 4 | . . 1 3 Assault . | . . . . Garrison 3 | . . . 3 Intercept . | . . . . Searches Triggered . | . . . . Construction Impeded . | . . . . Haulers Reinforced . | . . . . Active Scanning Responses . | . . . . Cargo Convoy Interrupts . | . . . . Stealth | -11 -10 -9 -8 --------- Run | Yrd Mat Mat Mat Distress Signals 7 | . . 1 6 Communications Jammed . | . . . . Distress Signals . | . . . . Times Spotted 53 | . 8 10 35 Peak Tracking Total 8 | . 2 5 8 Tactical Retreats 2 | . . . 2 Traps | -11 -10 -9 -8 ------- Run | Yrd Mat Mat Mat Traps Triggered . | . . . . Indirectly . | . . . . Trap Hack Attempts . | . . . . Triggered . | . . . . Disarmed . | . . . . Reprogrammed . | . . . . Reused . | . . . . Traps Extracted . | . . . . Installed . | . . . . Triggered . | . . . . Machines | -11 -10 -9 -8 ---------- Run | Yrd Mat Mat Mat Machines Disabled 3 | . 1 . 2 Max in Single Turn 1 | . 1 . 1 Machines Repaired . | . . . . Machines Dismantled . | . . . . Machines Sabotaged . | . . . . Overloaded Fab Kills . | . . . . Hacking | -11 -10 -9 -8 --------- Run | Yrd Mat Mat Mat Machines Accessed 14 | . 6 5 3 Terminals 13 | . 6 4 3 Fabricators . | . . . . Repair Stations . | . . . . Recycling Units . | . . . . Scanalyzers 1 | . . 1 . Garrison Access . | . . . . Total Hacks 33 | . 14 14 5 Successful 9 | . 5 4 . Failed 23 | . 9 9 5 Catastrophic 10 | . 5 2 3 Database Lockouts 1 | . . 1 . Manual 23 | . 12 8 3 Terminals 30 | . 14 11 5 Fabricators . | . . . . Repair Stations . | . . . . Recycling Units . | . . . . Scanalyzers 3 | . . 3 . Garrison Access . | . . . . Terminal Hacks 8 | . 5 3 . Robot Analysis 2 | . 2 . . Level Access Points 1 | . 1 . . Branch Access Points 2 | . 1 1 . Locate Traps 1 | . 1 . . Zone Layout 2 | . . 2 . Fabricator Hacks . | . . . . Repair Station Hacks . | . . . . Recycling Unit Hacks . | . . . . Scanalyzer 1 | . . 1 . Retrieve Study 1 | . . 1 . Garrison Access Hacks . | . . . . Unauthorized Hacks . | . . . . Terminals . | . . . . Fabricators . | . . . . Repair Stations . | . . . . Recycling Units . | . . . . Scanalyzers . | . . . . Garrison Access . | . . . . Data Cores Recovered 1 | . 1 . . Used . | . . . . Hacking Detections 13 | . 6 4 3 Full Trace Events 1 | . . 1 . Feedback Events . | . . . . Feedback Blocked . | . . . . Robot Schematics Acquired . | . . . . Robots Built . | . . . . Authchips . | . . . . Time . | . . . . Total Robot Build Rating . | . . . . Part Schematics Acquired . | . . . . Parts Built . | . . . . Authchips . | . . . . Time . | . . . . Total Part Build Rating . | . . . . Part Studies Acquired 1 | . . 1 . Parts Repaired . | . . . . Time . | . . . . Parts Recycled . | . . . . Recycled Matter . | . . . . Retrieved Matter . | . . . . Retrieved Components . | . . . . Parts Scanalyzed . | . . . . Part Schematics Acquired . | . . . . Parts Damaged . | . . . . Bothacking | -11 -10 -9 -8 ------------ Run | Yrd Mat Mat Mat Used RIF Installer . | . . . . Robots Hacked . | . . . . Non-combat . | . . . . Combat . | . . . . Robot Hacks Applied . | . . . . Relay Couplers Released . | . . . . Fabnet Peak Effective % . | . . . . Robots Rewired . | . . . . Allies Hacked . | . . . . Hacks Repelled . | . . . . Allies | -11 -10 -9 -8 -------- Run | Yrd Mat Mat Mat Total Allies . | . . . . Largest Group . | . . . . Highest-Rated Group . | . . . . Highest-Rated Ally . | . . . . Total Orders . | . . . . Ally Attacks . | . . . . Total Damage . | . . . . Kills . | . . . . Allies Corrupted . | . . . . Allies Melted . | . . . . Intel | -11 -10 -9 -8 ------- Run | Yrd Mat Mat Mat Active Infowar (turns) 2348 | 224 849 702 573 Terrain 1790 | 196 849 273 472 Structural 783 | . . 682 101 Seismic 28 | 28 . . . Robot Analysis Total 2 | . 2 . . Derelict Logs Recovered . | . . . . Drone Launches . | . . . . Drone Recoveries . | . . . . Exploration | -11 -10 -9 -8 ------------- Run | Yrd Mat Mat Mat Turns Passed 2623 | 331 849 702 741 Spaces Moved 1359 | 148 368 443 400 Core 7 | 6 . . 1 Treads 720 | 142 368 125 85 Legs . | . . . . Wheels 625 | . . 318 307 Hover . | . . . . Flight 7 | . . . 7 Fastest Speed 28 | 50 160 101 28 Average Speed 157 | 155 224 140 114 Slowest Speed 240 | 160 240 240 240 Overloaded Moves . | . . . . Propulsion Burnouts . | . . . . Robots Hopped . | . . . . Potential Cave-ins . | . . . . Cave-ins Triggered . | . . . . Exploration Rate (%) 35 | 7 62 38 34 Regions Visited 3 Branch Regions . Pre-discovered Areas . | . . . . Known Exits Taken 1 | . 1 . . Unknown Exits Taken 2 | 1 . 1 . Scrap Searched . | . . . . Spaces Dug 2 | . 1 1 . Terrain Destroyed 71 | . 1 1 69 Melee 2 | . 1 1 . Projectile . | . . . . AOE 69 | . . . 69 Terrain Rammed . | . . . . Walls Destroyed . | . . . . Machines Disabled . | . . . . Actions | -11 -10 -9 -8 --------- Run | Yrd Mat Mat Mat Total 1616 | 194 382 492 548 Wait 21 | 1 . 4 16 Move 1356 | 147 367 442 400 Hop . | . . . . Pick Up 38 | 5 8 12 13 Fast Attach 22 | 7 . 3 12 Attach 17 | 1 . 2 14 Detach 2 | . . 1 1 Swap 12 | . 2 4 6 Drop 16 | 1 . 6 9 Fire 40 | 32 2 . 6 Melee 92 | . 3 18 71 Ram . | . . . . Kick . | . . . . Crush . | . . . . Escape Stasis . | . . . . Rewire . | . . . . Trap . | . . . . Miscellaneous . | . . . . Route ------- -11/Scrapyard -10/Materials (discovered 5 exits: *Mat x3 / *Min x2) -9/Materials (discovered 3 exits: *Mat / *Min x2) -8/Materials (discovered 1 exit: [*Sto]) History --------- Turn | Location | Event 7 | -11/Scrapyard | Discovered new exit (range 15) 332 | -11/Scrapyard | Entered Materials 333 | -10/Materials | Build established: Mutant 420 | -10/Materials | Identified exit to Mines 869 | -10/Materials | Identified exit to Materials 1132 | -10/Materials | Derelicts attacked the area 1181 | -10/Materials | Entered another Materials area 1181 | -9/Materials | Evolved 2 slots: Propulsion x1, Utility x1 1244 | -9/Materials | Central database locked down 1494 | -9/Materials | Identified exit to Mines 1762 | -9/Materials | Build established: Gladiator 1842 | -9/Materials | Discovered new exit (range 15) 1883 | -9/Materials | Entered another Materials area 1883 | -8/Materials | Evolved 2 slots: Propulsion x1, Utility x1 2206 | -8/Materials | Garrison activated, responded to threat 2276 | -8/Materials | Lost 7 parts (4n2u1w) 2336 | -8/Materials | Build established: Scavenger-Mutant 2536 | -8/Materials | Core integrity fell below 50% 2583 | -8/Materials | Discovered new exit (range 11) 2611 | -8/Materials | Core integrity fell below 20% 2624 | -8/Materials | Destroyed by H-61 Shepherd with Heavy Assault Cannon Last Messages --------------- 02606_ Knocked back. 02608_ Penetrated by Slug. 02608_ Knocked back. 02609_ Dropped Hcp. Storage Unit. 02610_ Acquired Prototype Flight Unit. 02610_ Identified Imp. VTOL Module. 02610_ Knocked back. 02612_ Acquired VTOL Module+. 02614_ Acquired Flight Unit. 02618_ Repair Station disabled. 02618_ Backup Plating I tumbles out of repair station. 02618_ Backup Laser I tumbles out of repair station. 02618_ Backup Power I tumbles out of repair station. 02622_ Knocked back. 02623_ Acquired Hacking Suite. 02624_ Imp. Terrain Scan Processor destroyed. 02624_ Critical hit (Blast). Map ----- +----------------------------------------------------+ | ????????????????????????????????????????? | | ????????????????????????????????????????? | | ????????????????????????????????????????? | | ????????????????????????????????????????? | | ????????????????????????????????????????? | | ????????????????????????????????????????? | | ???????????????????????????? ???????????? | | ?????????????????????????#?? ???????????? | | ????????????????????#??????? ??????#?#??? | | ?????????????????????????#?? #?####?????? | | ???????????????????? ?#?#??? ###????????? | | ??????????????????? ??#?### ###???#???#? | | ??????????????? ? ?#??# #?#?#???#? | | ????????????+? ??? #???# ##?#????#? | | ????????????#? ??? ?##??# < #???#?#?#? | | ??????????? ???????? ?#### ! #???#????? | | ????????????? ? ??????##?? ??####???? | | ??????????????? ? ?????### #?#?####??# | | ???????????###???????????## ####?##???? | | ?????????????####??#?#??### #??#??###?? | | ???????????????#?????###?## #########?? | | ?????????? ?##?#?########## # / #??? | | ?????????? ??????#?# *!;H% # #??? | | ???????? ??##???#### """/!![ %# #??# | | ?????????? ??#??#??# "R !!;%% + """ #?#? | | ????????? ?#?#?##??# ""%*@# # """ ##?? | | ?????????? ????#???# [! # % # """ ##?# | | ?????????? ?#?#???## # #####+####? | | ???????? ? #??#?##?##;##### ##### #???? | | ???????? ??#????########### #?#?? | | ???????????#?#???######?### ##### #??#? | | ????????? ??##? ##?#?# ###?# #???? | | ???????# ??#? ###?###+##?#?# ##?#? | | ?? ????+ ?#?#""" #??? ?# #??## | | ???????# ???#""" # ? ## ##?## | | ???? ? # #?#""" # "?" """ ?## #???? | | ?? ?? # ### # ?"" """? ## ##?#? | | ??????## ### ] # """?""? ?# ####? | | ?????#?# ?## # ?? ? ?## ##??? | | ?#?###?# ### ! # ? ? ## #???# | | ???##### ### ###+##########+##### | | #?###?## ??? # # ### ##??? | | #???#??# ######+## ## """ ##??? | | ?##?#### ## ## """ ##??? | | #??##### **% """ ##??? | | ?##?#### T % = #???? | | ??#??### [ """ #?##? | | ##?##?## +###% ## # """ #???? | | ?##?##?# * !## # # """ ##??? | | ?##?#### =# ## ## ##?#? | +----------------------------------------------------+ Best States ------------- Heat Dissipation 31 Energy Generation 14 Energy Capacity 265 Matter Stores 300 Matter Capacity 300 Sight Range 16 Terrain Scan Range 16 Terrain Scan Density 110 Armor Coverage 300 Evasion (%) 50 Melee Accuracy 5 Recoil Reduction 4 Item Schematics ----------------- None Robot Schematics ------------------ None Fabricated ------------ Nothing Repaired ---------- Nothing Studied --------- VTOL Module | -9/Materials | Hacked Alien Tech Used ----------------- None Achievements -------------- None Challenges ------------ None Game ------ Seed ChainDamperFirepult Manual? 0 Play Time 00:21:56 Cumulative 117.9 hours Start 2026.07.27 @ 13:01:02 End 2026.07.27 @ 13:22:14 Sessions 1 Manual Loads 0 Difficulty Rogue Special Mode None Game No. 131 Rogue 77 Adventurer 54 Explorer 0 Win Type - Total 3 Types 2/0/0/1/0/0/0/0/0/0 Lore% 51 Gallery% 50 Achievement% 44 Wizard Run 0 Options --------- Layout 1 ASCII 0 Keyboard 0 Movement Mouse Keybinds 1 Fullscreen 1 Font 32/Tamsyn Map View 50x35 Zoom Use 0% Tactical HUD 1 Map Filters NONE Filters NONE Steam 1 RUN: 59c64762-320d-450d-ae79-ec0f61f5b9c5